bitfinex-derivatives/quotes_SOLF0:USTF0_20250831
["timestamp","ask_amount","ask_price","bid_price","bid_amount"]
[1756671594214,1.72947181,204.91,204.86,1.72947181]
[1756671595113,1.72947181,204.91,204.87,7.3]
[1756671595313,1.72947181,204.91,204.86,1.72947181]
[1756671595511,1.72947181,204.91,204.87,7.3]
[1756671595918,1.72947181,204.91,204.86,1.72947181]
[1756671597312,1.72947181,204.91,204.87,7.3]
[1756671597614,1.72947181,204.91,204.86,1.72947181]
[1756671598411,1.72947181,204.91,204.87,7.3]
[1756671598611,1.72947181,204.91,204.86,1.72947181]
[1756671598811,1.72947181,204.91,204.87,7.3]
[1756671599114,1.72947181,204.91,204.86,1.72947181]
[1756671599312,1.72947181,204.91,204.87,7.3]
[1756671599617,1.72947181,204.91,204.86,1.72947181]
[1756671599811,1.72947181,204.91,204.87,7.3]
[1756671600020,1.72947181,204.91,204.86,1.72947181]
[1756671600518,1.72947181,204.91,204.87,7.3]
[1756671601213,1.72947181,204.91,204.86,1.72947181]
[1756671601515,1.72947181,204.91,204.85,7.3]
[1756671601918,1.72947181,204.89,204.85,7.3]
[1756671602117,1.72947181,204.89,204.84,1.72947181]
[1756671602811,1.72947181,204.89,204.83,4.10784684]
[1756671603019,1.72947181,204.89,204.84,7.3]
[1756671604115,1.72947181,204.89,204.83,5.83731865]
[1756671604325,1.72947181,204.89,204.84,7.3]
[1756671604520,1.72947181,204.85,204.81,7.3]
[1756671605023,1.72947181,204.85,204.79,4.10784684]
[1756671605223,1.72947181,204.85,204.8,7.3]
[1756671605423,1.72947181,204.85,204.79,4.10784684]
[1756671605820,1.72947181,204.85,204.8,7.3]
[1756671606123,1.72947181,204.85,204.79,4.10784684]
[1756671607221,1.72947181,204.85,204.8,7.3]
[1756671607619,1.72947181,204.85,204.79,4.10784684]
[1756671607823,1.72947181,204.85,204.8,7.7]
[1756671608325,1.72947181,204.85,204.78,70.15640243]
[1756671608529,1.72947181,204.84,204.79,7.7]
[1756671609228,5.4887395,204.94,204.79,11.80784684]
[1756671609430,1.72947181,204.86,204.8,7.7]
[1756671609629,1.72947181,204.86,204.8,9.42947181]
[1756671610927,25.78,204.87,204.82,1.72947181]
[1756671612235,25.78,204.87,204.83,7.7]
[1756671612428,25.78,204.87,204.82,1.72947181]
[1756671612633,25.78,204.87,204.83,7.7]
[1756671613028,1.72947181,204.84,204.8,4.10784684]
[1756671613232,1.72947181,204.82,204.76,4.10784684]
[1756671613432,1.72947181,204.78,204.74,11.80784684]
[1756671613631,1.72947181,204.78,204.74,7.7]
[1756671613832,1.72947181,204.78,204.72,5.83731865]
[1756671614138,1.72947181,204.8,204.73,7.7]
[1756671615136,1.72947181,204.8,204.72,5.83731865]
[1756671615137,1.72947181,204.78,204.72,5.83731865]
[1756671615438,1.72947181,204.78,204.73,7.7]
[1756671615731,1.72947181,204.78,204.72,5.83731865]
[1756671616036,1.72947181,204.78,204.69,5.4819038]
[1756671616037,2.70675481,204.76,204.69,7.7]
[1756671619530,12.4,204.75,204.69,7.7]
[1756671621432,2.70675481,204.76,204.69,7.7]
[1756671621634,12.36,204.75,204.69,7.7]
[1756671622138,2.70675481,204.76,204.69,7.7]
[1756671622338,12.36,204.75,204.69,7.7]
[1756671623741,328.1,204.84,204.69,7.7]
[1756671624043,2.70675481,204.8,204.69,7.7]
[1756671627747,12.36,204.79,204.69,7.7]
[1756671633862,2.70675481,204.8,204.69,7.7]
[1756671634062,23.96,204.78,204.69,7.7]
[1756671635364,2.70675481,204.8,204.69,7.7]
[1756671635563,34.9,204.79,204.69,7.7]
[1756671639261,2.70675481,204.8,204.69,7.7]
[1756671639464,328.1,204.84,204.73,2.70675481]
[1756671639662,328.1,204.84,204.74,7.6]
[1756671639663,119.0,204.83,204.74,7.6]
[1756671640064,120.73070359,204.83,204.77,1.73070359]
[1756671641964,119.0,204.83,204.76,7.6]
[1756671642569,328.1,204.84,204.77,2.70420477]
[1756671642770,119.0,204.83,204.77,2.70420477]
[1756671642965,447.1,204.84,204.78,7.6]
[1756671644970,118.98,204.84,204.78,7.6]
[1756671645470,2.70420477,204.88,204.78,7.6]
[1756671645670,2.14,204.87,204.78,7.6]
[1756671653478,2.70420477,204.88,204.78,7.6]
[1756671653679,15.54,204.87,204.78,7.6]
[1756671653977,2.70420477,204.88,204.78,7.6]
[1756671654274,28.24,204.86,204.78,7.6]
[1756671655170,2.70420477,204.85,204.78,7.6]
[1756671655478,28.24,204.86,204.72,11.68284375]
[1756671655479,2.70420477,204.82,204.72,11.68284375]
[1756671655678,2.70420477,204.79,204.72,7.6]
[1756671655884,17.82,204.78,204.72,7.6]
[1756671658170,20.52420477,204.78,204.72,7.6]
[1756671663278,20.76,204.77,204.72,7.6]
[1756671663581,20.76,204.77,204.69,7.6]
[1756671663982,2.70420477,204.78,204.69,7.6]
[1756671664380,2.56,204.77,204.69,7.6]
[1756671665581,2.70420477,204.78,204.69,7.6]
[1756671665780,5.34,204.77,204.69,7.6]
[1756671666082,5.34,204.77,204.69,4.08284375]
[1756671666285,5.34,204.77,204.7,7.6]
[1756671668080,5.34,204.77,204.69,4.08284375]
[1756671668285,2.70420477,204.75,204.66,7.54]
[1756671669790,118.94,204.74,204.66,7.54]
[1756671670186,2.70420477,204.75,204.66,7.54]
[1756671670387,118.94,204.74,204.66,7.54]
[1756671672584,2.70420477,204.75,204.66,7.54]
[1756671672786,118.94,204.74,204.66,7.54]
[1756671673980,2.70420477,204.75,204.66,7.54]
[1756671674185,118.94,204.73,204.66,7.54]
[1756671674588,2.70420477,204.75,204.66,7.54]
[1756671674888,118.94,204.74,204.66,7.54]
[1756671677888,2.70420477,204.75,204.66,7.54]
[1756671678091,118.94,204.74,204.66,7.54]
[1756671679497,118.94,204.73,204.66,7.54]
[1756671679995,2.70420477,204.72,204.63,7.54]
[1756671680899,2.70420477,204.69,204.63,7.54]
[1756671685901,13.24,204.68,204.59,7.54]
[1756671687305,2.70420477,204.78,204.59,7.54]
[1756671687501,2.70420477,204.71,204.59,7.54]
[1756671687707,118.96,204.7,204.59,7.54]
[1756671690506,118.96,204.69,204.59,7.54]
[1756671691317,2.70420477,204.71,204.59,7.54]
[1756671691518,118.96,204.7,204.59,7.54]
[1756671692011,1.73337894,204.67,204.61,1.73337894]
[1756671692417,1.73337894,204.67,204.62,7.54]
[1756671692820,1.73337894,204.67,204.61,1.73337894]
[1756671693721,120.69337894,204.67,204.61,1.73337894]
[1756671694222,120.69337894,204.67,204.62,7.54]
[1756671694618,120.69337894,204.67,204.61,1.73337894]
[1756671694814,120.69337894,204.67,204.62,7.54]
[1756671695215,120.69337894,204.67,204.61,1.73337894]
[1756671698119,1.73337894,204.67,204.61,1.73337894]
[1756671698423,1.73337894,204.67,204.61,9.09337894]
[1756671699725,1.73337894,204.67,204.61,7.36]
[1756671699926,1.73337894,204.67,204.61,9.09337894]
[1756671700529,1.73337894,204.71,204.66,7.36]
[1756671700721,1.73337894,204.71,204.65,1.73337894]
[1756671701222,12.12,204.73,204.66,7.36]
[1756671701426,23.87337894,204.72,204.68,7.36]
[1756671701828,23.87337894,204.72,204.66,1.73337894]
[1756671702028,22.14,204.72,204.64,7.36]
[1756671705435,2.70742247,204.74,204.64,7.36]
[1756671705636,13.24,204.73,204.64,7.36]
[1756671706438,2.70742247,204.74,204.64,7.36]
[1756671706638,2.70742247,204.75,204.64,7.36]
[1756671706831,13.22,204.74,204.64,7.36]
[1756671707138,2.70742247,204.75,204.64,7.36]
[1756671707340,13.22,204.74,204.64,7.36]
[1756671707839,2.70742247,204.75,204.64,7.36]
[1756671708036,2.56,204.74,204.66,7.36]
[1756671708540,2.70742247,204.78,204.66,7.36]
[1756671708934,328.2,204.79,204.68,2.70742247]
[1756671709140,118.94,204.78,204.69,7.36]
[1756671710840,328.2,204.79,204.69,7.36]
[1756671711040,118.92,204.77,204.69,7.36]
[1756671713045,328.2,204.79,204.69,7.36]
[1756671713242,118.92,204.76,204.69,7.36]
[1756671713946,328.2,204.79,204.69,7.36]
[1756671714147,118.92,204.78,204.69,7.36]
[1756671715847,328.2,204.79,204.69,7.36]
[1756671716045,118.9,204.78,204.69,7.36]
[1756671716747,328.2,204.79,204.69,7.36]
[1756671716944,118.9,204.78,204.69,7.36]
[1756671719149,121.60742247,204.78,204.69,7.36]
[1756671724647,2.70742247,204.75,204.66,14.15026622]
[1756671724952,2.70742247,204.75,204.66,7.36]
[1756671726352,118.88,204.74,204.66,7.36]
[1756671727651,2.70742247,204.78,204.66,7.36]
[1756671727844,118.88,204.77,204.66,7.36]
[1756671728047,1.7320806,204.74,204.68,9.1520806]
[1756671729452,118.88,204.73,204.68,9.1520806]
[1756671729751,118.88,204.73,204.69,7.42]
[1756671730444,118.88,204.73,204.68,1.7320806]
[1756671730650,118.88,204.73,204.68,9.1520806]
[1756671731651,118.88,204.73,204.68,1.7320806]
[1756671731858,118.88,204.73,204.69,7.42]
[1756671732157,118.88,204.73,204.68,1.7320806]
[1756671732858,1.7320806,204.74,204.69,7.42]
[1756671733058,118.88,204.73,204.69,7.42]
[1756671735959,118.88,204.73,204.66,4.10380708]
[1756671736159,118.88,204.73,204.67,1.7320806]
[1756671736358,118.88,204.73,204.67,9.1520806]
[1756671738462,1.7320806,204.74,204.67,9.1520806]
[1756671738658,118.88,204.72,204.68,7.42]
[1756671739465,118.88,204.73,204.68,7.42]
[1756671740064,1.7320806,204.74,204.68,7.42]
[1756671740360,118.88,204.73,204.68,7.42]
[1756671742759,118.88,204.73,204.67,1.7320806]
[1756671742957,1.7320806,204.7,204.63,1.7320806]
[1756671743162,1.7320806,204.67,204.63,5.83955413]
[1756671745962,1.7320806,204.67,204.63,13.25955413]
[1756671746762,1.7320806,204.67,204.63,13.26453377]
[1756671747063,1.7320806,204.67,204.64,7.42]
[1756671748361,1.7320806,204.69,204.64,7.42]
[1756671748662,1.7320806,204.69,204.63,1.7320806]
[1756671748855,1.7320806,204.65,204.62,4.11245317]
[1756671749163,1.7320806,204.65,204.61,13.26453377]
[1756671749662,1.7320806,204.65,204.61,4.11245317]
[1756671749860,1.7320806,204.63,204.58,4.11245317]
[1756671750254,1.7320806,204.63,204.57,4.11245317]
[1756671750462,5.4887395,204.73,204.57,13.26453377]
[1756671750662,1.7320806,204.66,204.59,9.1520806]
[1756671750859,1.7320806,204.64,204.59,9.1520806]
[1756671751063,1.7320806,204.64,204.59,7.42]
[1756671751259,1.7320806,204.64,204.58,4.11245317]
[1756671751462,1.7320806,204.62,204.58,4.11245317]
[1756671751965,7.0,204.65,204.58,4.11245317]
[1756671751966,9.70957979,204.65,204.58,4.11245317]
[1756671752466,5.4887395,204.75,204.58,4.11245317]
[1756671752467,5.4887395,204.74,204.58,7.42]
[1756671752667,2.70957979,204.68,204.59,7.42]
[1756671752865,2.70957979,204.68,204.59,11.53245317]
[1756671754062,2.70957979,204.68,204.59,7.42]
[1756671757973,10.42,204.73,204.59,7.42]
[1756671758167,2.70957979,204.68,204.59,7.42]
[1756671770488,338.84,204.73,204.59,7.42]
[1756671770790,2.70957979,204.68,204.6,4.10326926]
[1756671770989,2.70957979,204.68,204.61,7.61]
[1756671771977,1.73327142,204.68,204.62,1.73327142]
[1756671772183,1.73327142,204.68,204.63,7.61]
[1756671772587,1.73327142,204.68,204.62,1.73327142]
[1756671773487,118.88,204.68,204.64,1.73327142]
[1756671773688,118.88,204.68,204.65,7.61]
[1756671774081,118.88,204.68,204.64,1.73327142]
[1756671774287,1.73327142,204.7,204.64,1.73327142]
[1756671774490,120.61327142,204.7,204.65,7.61]
[1756671774683,120.61327142,204.7,204.64,1.73327142]
[1756671774990,120.61327142,204.7,204.65,7.61]
[1756671775492,1.73327142,204.7,204.65,7.61]
[1756671775789,1.73327142,204.72,204.65,7.61]
[1756671775988,118.88,204.7,204.65,7.61]
[1756671776888,118.88,204.7,204.64,1.73327142]
[1756671777290,118.88,204.7,204.65,7.61]
[1756671777490,118.88,204.7,204.67,7.61]
[1756671777785,330.15327142,204.73,204.67,7.61]
[1756671777991,118.88,204.72,204.68,7.61]
[1756671781382,118.88,204.72,204.67,1.73327142]
[1756671781582,118.88,204.72,204.68,7.61]
[1756671782086,328.42,204.73,204.69,1.73327142]
[1756671782292,118.86,204.72,204.7,7.61]
[1756671782990,118.86,204.72,204.69,1.73327142]
[1756671783391,118.86,204.72,204.7,7.61]
[1756671783588,118.86,204.72,204.69,1.73327142]
[1756671783788,118.86,204.72,204.7,7.61]
[1756671784289,118.86,204.72,204.69,1.73327142]
[1756671784787,118.86,204.72,204.7,7.61]
[1756671785286,118.86,204.72,204.69,1.73327142]
[1756671785489,118.86,204.72,204.7,7.61]
[1756671789091,1.73327142,204.74,204.7,7.61]
[1756671789289,118.84,204.73,204.66,4.10714877]
[1756671789492,118.84,204.73,204.65,11.64714877]
[1756671789790,1.73327142,204.67,204.61,13.38042019]
[1756671789986,1.73327142,204.65,204.61,11.64714877]
[1756671790290,26.76,204.64,204.61,7.54]
[1756671790484,1.73327142,204.65,204.6,4.10714877]
[1756671790485,27.22,204.63,204.6,4.10714877]
[1756671790690,27.22,204.63,204.59,11.64714877]
[1756671791491,28.95327142,204.63,204.59,11.64714877]
[1756671791892,28.95327142,204.63,204.6,7.54]
[1756671792093,27.22,204.63,204.6,7.54]
[1756671793690,27.22,204.63,204.57,4.10714877]
[1756671793890,26.18,204.63,204.58,4.10714877]
[1756671794093,26.18,204.63,204.59,7.54]
[1756671794290,26.18,204.63,204.58,4.10714877]
[1756671794490,2.70933178,204.68,204.58,4.10714877]
[1756671794691,27.44,204.67,204.6,7.54]
[1756671795794,27.44,204.67,204.6,10.24933178]
[1756671797098,27.44,204.67,204.6,14.35648055]
[1756671797298,2.70933178,204.7,204.6,14.35648055]
[1756671797493,2.70933178,204.7,204.61,11.64714877]
[1756671797698,3.02,204.71,204.64,7.54]
[1756671798389,16.3,204.71,204.64,7.54]
[1756671799299,2.70933178,204.74,204.64,7.54]
[1756671799594,28.9,204.73,204.64,7.54]
[1756671800693,2.70933178,204.74,204.64,7.54]
[1756671800899,40.74,204.73,204.64,7.54]
[1756671803200,40.74,204.73,204.6,2.70933178]
[1756671803201,51.02,204.74,204.67,7.54]
[1756671804100,2.70933178,204.78,204.67,7.54]
[1756671804298,89.32,204.77,204.67,7.54]
[1756671804503,118.94,204.77,204.7,7.54]
[1756671806102,2.70933178,204.78,204.7,7.54]
[1756671806302,118.94,204.77,204.7,7.54]
[1756671808502,118.9,204.78,204.72,2.70933178]
[1756671808701,118.9,204.78,204.72,10.24933178]
[1756671809003,118.9,204.81,204.73,7.54]
[1756671809196,118.9,204.81,204.75,10.24933178]
[1756671810906,118.9,204.81,204.75,7.54]
[1756671812508,118.9,204.81,204.72,10.24933178]
[1756671812709,118.9,204.81,204.69,10.24933178]
[1756671815517,118.9,204.81,204.7,7.54]
[1756671817720,118.9,204.81,204.7,11.64714877]
[1756671818019,0.04,204.8,204.7,11.64714877]
[1756671818813,0.04,204.8,204.73,7.66]
[1756671819018,118.94,204.79,204.73,7.66]
[1756671819916,118.94,204.79,204.73,10.36933178]
[1756671820819,0.04,204.8,204.73,10.36933178]
[1756671821118,118.98,204.79,204.73,10.36933178]
[1756671821317,118.98,204.79,204.74,7.66]
[1756671822220,118.98,204.8,204.74,7.66]
[1756671828426,119.02,204.8,204.74,7.66]
[1756671832730,0.04,204.8,204.74,7.66]
[1756671833829,118.84,204.81,204.71,14.47648055]
[1756671834027,118.84,204.81,204.71,10.36933178]
[1756671835039,0.04,204.8,204.71,10.36933178]
[1756671835333,118.84,204.81,204.71,10.36933178]
[1756671836134,0.04,204.8,204.71,10.36933178]
[1756671836437,118.84,204.81,204.71,10.36933178]
[1756671836736,0.04,204.8,204.71,10.36933178]
[1756671837129,118.84,204.81,204.71,10.36933178]
[1756671837130,118.84,204.81,204.71,14.47648055]
[1756671837636,0.04,204.8,204.71,14.47648055]
[1756671837836,118.84,204.81,204.71,14.47648055]
[1756671838437,0.04,204.8,204.71,14.47648055]
[1756671838636,118.84,204.81,204.71,14.47648055]
[1756671839339,0.04,204.8,204.71,14.47648055]
[1756671839538,0.04,204.8,204.72,7.66]
[1756671839939,118.84,204.81,204.73,2.70933178]
[1756671840139,0.04,204.8,204.73,2.70933178]
[1756671841244,0.04,204.8,204.72,14.47648055]
[1756671843138,0.04,204.8,204.73,7.66]
[1756671844245,0.04,204.8,204.73,11.76714877]
[1756671847347,0.04,204.8,204.74,4.10714877]
[1756671847949,0.04,204.8,204.75,1.73104594]
[1756671848149,120.57104594,204.81,204.75,1.73104594]
[1756671853154,120.57104594,204.81,204.75,5.83819471]
[1756671856859,118.84,204.81,204.75,5.83819471]
[1756671860362,1.73104594,204.79,204.75,4.10714877]
[1756671860556,118.84,204.81,204.74,4.10714877]
[1756671860557,1.73104594,204.77,204.74,4.10714877]
[1756671860757,1.73104594,204.77,204.73,11.63714877]
[1756671864964,0.02,204.76,204.73,11.63714877]
[1756671865264,0.02,204.76,204.73,4.10714877]
[1756671865464,1.73104594,204.77,204.73,4.10714877]
[1756671865860,0.02,204.76,204.73,4.10714877]
[1756671866065,0.02,204.76,204.73,11.63714877]
[1756671867666,0.02,204.76,204.74,7.53]
[1756671872972,0.02,204.76,204.73,7.53]
[1756671873473,0.02,204.76,204.72,5.83819471]
[1756671873873,1.75104594,204.77,204.72,5.83819471]
[1756671874175,1.75104594,204.77,204.73,7.53]
[1756671875377,1.75104594,204.77,204.72,5.83819471]
[1756671875578,1.75104594,204.77,204.73,7.53]
[1756671876277,1.75104594,204.77,204.72,5.83819471]
[1756671876475,1.75104594,204.77,204.73,7.53]
[1756671876978,1.75104594,204.77,204.72,5.83819471]
[1756671877575,1.75104594,204.77,204.73,7.53]
[1756671877777,1.75104594,204.77,204.72,5.83819471]
[1756671878179,1.75104594,204.77,204.73,7.26]
[1756671878478,0.02,204.77,204.73,7.26]
[1756671878778,0.02,204.77,204.72,5.83819471]
[1756671878972,0.02,204.77,204.73,7.26]
[1756671879569,0.02,204.77,204.72,5.83819471]
[1756671880178,0.02,204.77,204.73,7.26]
[1756671880876,0.02,204.77,204.72,5.83819471]
[1756671881382,0.02,204.77,204.73,7.26]
[1756671881676,0.02,204.77,204.73,4.10714877]
[1756671881878,0.02,204.77,204.74,7.26]
[1756671882178,118.8,204.79,204.73,4.10714877]
[1756671882375,120.53104594,204.79,204.74,7.26]
[1756671882880,120.53104594,204.79,204.73,4.10714877]
[1756671883080,120.53104594,204.79,204.73,11.36714877]
[1756671883576,1.73104594,204.79,204.73,4.10714877]
[1756671883783,13.65104594,204.79,204.74,7.26]
[1756671883984,13.65104594,204.79,204.73,4.10714877]
[1756671884286,13.65104594,204.79,204.74,7.26]
[1756671884583,13.65104594,204.79,204.73,4.10714877]
[1756671884784,13.65104594,204.79,204.74,7.26]
[1756671885083,13.65104594,204.79,204.73,4.10714877]
[1756671885282,13.65104594,204.79,204.74,7.26]
[1756671885484,13.65104594,204.79,204.73,4.10714877]
[1756671885684,1.73104594,204.78,204.74,7.26]
[1756671886380,1.73104594,204.78,204.73,4.10714877]
[1756671886584,1.73104594,204.78,204.74,7.26]
[1756671886786,1.73104594,204.78,204.73,4.10714877]
[1756671886986,1.73104594,204.78,204.72,5.83819471]
[1756671887479,1.73104594,204.76,204.73,7.26]
[1756671887886,11.92,204.79,204.72,5.83819471]
[1756671888187,1.73104594,204.78,204.73,7.26]
[1756671890686,1.73104594,204.78,204.72,5.83819471]
[1756671890888,1.73104594,204.78,204.73,7.26]
[1756671891189,1.73104594,204.78,204.73,4.10714877]
[1756671891386,1.73104594,204.78,204.74,7.26]
[1756671891687,1.73104594,204.78,204.73,4.10714877]
[1756671892081,1.73104594,204.78,204.74,7.26]
[1756671892482,1.73104594,204.78,204.73,4.10714877]
[1756671892687,1.73104594,204.78,204.74,7.26]
[1756671892982,1.73104594,204.78,204.73,4.10714877]
[1756671893185,1.73104594,204.78,204.74,7.26]
[1756671893890,1.73104594,204.78,204.73,4.10714877]
[1756671894189,1.73104594,204.78,204.74,7.26]
[1756671894388,1.73104594,204.78,204.73,4.10714877]
[1756671894986,1.73104594,204.78,204.74,7.26]
[1756671895187,1.73104594,204.78,204.73,4.10714877]
[1756671895391,1.73104594,204.78,204.74,7.26]
[1756671895591,1.73104594,204.78,204.73,4.10714877]
[1756671896092,1.73104594,204.78,204.74,7.26]
[1756671896692,1.73104594,204.78,204.73,4.10714877]
[1756671897491,1.73104594,204.78,204.74,7.26]
[1756671897693,1.73104594,204.78,204.73,4.10714877]
[1756671897990,1.73104594,204.78,204.74,7.26]
[1756671898188,1.73104594,204.78,204.73,4.10714877]
[1756671898690,1.73104594,204.78,204.74,7.26]
[1756671899393,1.73104594,204.78,204.73,4.10714877]
[1756671899591,1.73104594,204.78,204.74,7.26]
[1756671899787,0.8500971,204.85,204.76,1.73104594]
[1756671899990,1.73104594,204.82,204.77,7.26]
[1756671900185,1.73104594,204.82,204.76,5.83819471]
[1756671900487,1.73104594,204.82,204.77,7.26]
[1756671900687,1.73104594,204.82,204.76,5.83819471]
[1756671900893,1.73104594,204.82,204.77,7.26]
[1756671901093,1.73104594,204.82,204.76,5.83819471]
[1756671901493,1.73104594,204.82,204.77,7.26]
[1756671903494,1.73104594,204.82,204.76,5.83819471]
[1756671903892,1.73104594,204.8,204.76,4.10714877]
[1756671904290,1.73104594,204.8,204.77,7.26]
[1756671904489,1.73104594,204.8,204.76,4.10714877]
[1756671904903,1.73104594,204.8,204.77,7.26]
[1756671905302,1.73104594,204.8,204.76,4.10714877]
[1756671905702,1.73104594,204.8,204.77,7.26]
[1756671906102,1.73104594,204.8,204.76,4.10714877]
[1756671906999,1.73104594,204.8,204.77,7.26]
[1756671907203,1.73104594,204.8,204.76,4.10714877]
[1756671907707,1.73104594,204.8,204.77,7.26]
[1756671907902,1.73104594,204.8,204.76,4.10714877]
[1756671908303,1.73104594,204.8,204.74,1.73104594]
[1756671908304,1.73104594,204.81,204.77,7.84]
[1756671908608,1.73104594,204.81,204.75,4.10714877]
[1756671908805,1.73104594,204.81,204.76,7.84]
[1756671909309,1.73104594,204.81,204.75,4.10714877]
[1756671909607,1.73104594,204.81,204.76,7.84]
[1756671909809,1.73104594,204.81,204.75,4.10714877]
[1756671910106,1.73104594,204.81,204.76,7.84]
[1756671910510,1.73104594,204.81,204.75,5.83819471]
[1756671910710,1.73104594,204.81,204.76,7.84]
[1756671910906,1.73104594,204.81,204.75,5.83819471]
[1756671911208,1.73104594,204.81,204.76,7.84]
[1756671911610,1.73104594,204.81,204.75,5.83819471]
[1756671911911,1.73104594,204.81,204.76,7.84]
[1756671912106,1.73104594,204.81,204.75,5.83819471]
[1756671912508,1.73104594,204.81,204.76,7.84]
[1756671913009,1.73104594,204.81,204.75,5.83819471]
[1756671913406,1.73104594,204.81,204.76,7.84]
[1756671913802,1.73104594,204.81,204.75,5.83819471]
[1756671914006,1.73104594,204.81,204.76,7.84]
[1756671914310,1.73104594,204.81,204.75,5.83819471]
[1756671914506,1.73104594,204.81,204.76,7.84]
[1756671915414,1.73104594,204.81,204.75,5.83819471]
[1756671915614,1.73104594,204.81,204.76,7.84]
[1756671916616,1.73104594,204.81,204.75,5.83819471]
[1756671917015,1.73104594,204.81,204.76,7.84]
[1756671917514,1.73104594,204.81,204.75,5.83819471]
[1756671917815,1.73104594,204.81,204.76,7.84]
[1756671918016,118.8,204.84,204.76,7.84]
[1756671918511,383.23311941,204.86,204.8,7.84]
[1756671918707,118.76,204.85,204.81,4.58264793]
[1756671918909,118.76,204.85,204.83,7.84]
[1756671919213,118.76,204.85,204.84,12.42264793]
[1756671923019,1.73104594,204.89,204.84,4.58264793]
[1756671923223,118.76,204.88,204.86,7.84]
[1756671923419,118.76,204.88,204.87,4.58264793]
[1756671923619,118.76,204.88,204.87,4.45700195]
[1756671924915,118.74,204.88,204.87,4.45700195]
[1756671925120,1.73104594,204.89,204.87,12.29700195]
[1756671925323,1.73104594,204.89,204.87,7.84]
[1756671925324,118.74,204.88,204.87,7.84]
[1756671925518,118.74,204.88,204.87,12.2947026]
[1756671927109,118.74,204.88,204.87,7.84]
[1756671927314,118.74,204.88,204.87,12.29241526]
[1756671928925,0.84963012,204.96,204.87,12.29241526]
[1756671929119,1.73104594,204.91,204.88,4.45241526]
[1756671929320,118.72,204.9,204.89,4.45241526]
[1756671933626,0.84963012,204.96,204.89,4.45241526]
[1756671933826,328.18,204.97,204.9,12.29241526]
[1756671933827,1.73104594,204.94,204.9,12.29241526]
[1756671934028,1.73104594,204.94,204.91,8.99202624]
[1756671934233,1.73104594,204.94,204.9,7.84]
[1756671934234,1.73104594,204.94,204.92,8.99202624]
[1756671934432,1.73104594,204.94,204.93,8.99202624]
[1756671935129,1.73104594,204.94,204.93,4.45241526]
[1756671938024,1.73104594,204.94,204.93,4.47740997]
[1756671938728,1.73104594,204.94,204.93,9.0137783]
[1756671939130,1.73104594,204.96,204.93,16.8237783]
[1756671939328,118.7,204.95,204.94,16.8237783]
[1756671941331,118.7,204.95,204.94,9.0137783]
[1756671943128,118.7,204.95,204.94,4.47740997]
[1756671947637,1.73104594,204.96,204.94,4.47740997]
[1756671947843,118.68,204.95,204.94,7.81]
[1756671948032,118.68,204.95,204.94,16.83237758]
[1756671948741,118.68,204.95,204.94,12.28603725]
[1756671948941,118.68,204.95,204.94,16.83200473]
[1756671949544,118.68,204.95,204.94,9.02200473]
[1756671954944,118.68,204.95,204.94,16.83200473]
[1756671956345,118.68,204.95,204.94,9.02200473]
[1756671958551,1.73104594,204.96,204.94,16.83200473]
[1756671958751,118.66,204.95,204.94,7.81]
[1756671958951,118.66,204.95,204.94,16.83773089]
[1756671959648,118.66,204.95,204.94,16.83856694]
[1756671960256,328.18,204.97,204.95,7.81]
[1756671960449,328.18,204.97,204.96,9.02856694]
[1756671960647,446.84,204.97,204.96,9.02856694]
[1756671961258,448.57104594,204.97,204.96,9.02856694]
[1756671962861,448.60104594,204.97,204.96,9.02856694]
[1756671966062,446.87,204.97,204.96,9.02856694]